fUST/lending_fUST_20240731
["ID","MTS","AMOUNT","RATE_DAILY","PERIOD"]
[333736476,1722426639785,-500.0,0.00013698,2]
[333736478,1722426639794,-500.0,0.00013698,2]
[333736480,1722426639804,-500.0,0.00013698,2]
[333736482,1722426639814,-500.0,0.00013698,2]
[333736483,1722426639824,-500.0,0.00013698,2]
[333736484,1722426639834,-500.0,0.00013698,2]
[333736486,1722426639843,-500.0,0.00013698,2]
[333736487,1722426639853,-1555.18,0.00013698,2]
[333736488,1722426639862,-520.39022666,0.00013698,2]
[333736489,1722426639871,-500.0,0.00013698,2]
[333736490,1722426639881,-630.49,0.00013698,2]
[333736491,1722426639891,-500.0,0.00013698,2]
[333736493,1722426639900,-500.0,0.00013698,2]
[333736494,1722426639909,-500.0,0.00013698,2]
[333736495,1722426639919,-667.48,0.00013698,2]
[333736496,1722426639928,-500.0,0.00013698,2]
[333736497,1722426639937,-500.0,0.00013698,2]
[333736498,1722426639947,-500.0,0.00013698,2]
[333736499,1722426639956,-511.12,0.00013698,2]
[333736500,1722426639965,-500.0,0.00013698,2]
[333736501,1722426639974,-500.0,0.00013698,2]
[333736502,1722426639983,-151.0,0.00013698,2]
[333736503,1722426639992,-151.0,0.00013698,2]
[333736504,1722426640002,-151.0,0.00013698,2]
[333736506,1722426640011,-500.0,0.00013698,2]
[333736508,1722426640021,-500.0,0.00013698,2]
[333736509,1722426640030,-893.46,0.00013698,2]
[333736510,1722426640040,-500.0,0.00013698,2]
[333736511,1722426640049,-509.96349792,0.00013698,2]
[333736512,1722426640060,-964.79,0.00013698,2]
[333736513,1722426640070,-500.0,0.00013698,2]
[333736514,1722426640079,-898.17,0.00013698,2]
[333736515,1722426640090,-287.85659771,0.00013698,2]
[333736516,1722426640099,-1426.89,0.00013698,2]
[333736517,1722426640109,-500.0,0.00013698,2]
[333736518,1722426640118,-500.0,0.00013698,2]
[333736519,1722426640131,-500.0,0.00013698,2]
[333736520,1722426640143,-500.0,0.00013698,2]
[333736521,1722426640157,-684.68,0.00013698,2]
[333736522,1722426640168,-500.0,0.00013698,2]
[333736523,1722426640177,-500.0,0.00013698,2]
[333736524,1722426640187,-151.0,0.00013698,2]
[333736525,1722426640198,-151.0,0.00013698,2]
[333736526,1722426640208,-472.02057851,0.00013698,2]
[333736527,1722426640217,-500.0,0.00013698,2]
[333736528,1722426640227,-339.173253,0.00013698,2]
[333736529,1722426640236,-339.173253,0.00013698,2]
[333736530,1722426640245,-339.173253,0.00013698,2]
[333736531,1722426640255,-339.173253,0.00013698,2]
[333736532,1722426640265,-339.173253,0.00013698,2]
[333736533,1722426640275,-339.173253,0.00013698,2]
[333736534,1722426640284,-527.90124887,0.00013698,2]
[333736535,1722426640294,-500.0,0.00013698,2]
[333736536,1722426640303,-500.0,0.00013698,2]
[333736537,1722426640312,-500.0,0.00013698,2]
[333736538,1722426640321,-968.2,0.00013698,2]
[333736539,1722426640331,-500.0,0.00013698,2]
[333736540,1722426640340,-1642.52,0.00013698,2]
[333736541,1722426640349,-510.54420126,0.00013698,2]
[333736542,1722426640359,-151.0,0.00013698,2]
[333736543,1722426640369,-151.0,0.00013698,2]
[333736544,1722426640380,-151.0,0.00013698,2]
[333736545,1722426640390,-1118.50370368,0.00013698,2]
[333736551,1722426641041,-1382.27629632,0.00013698,2]
[333736553,1722426641052,-500.0,0.00013698,2]
[333736554,1722426641063,-500.0,0.00013698,2]
[333736555,1722426641072,-500.0,0.00013698,2]
[333736556,1722426641082,-500.0,0.00013698,2]
[333736557,1722426641091,-518.09102675,0.00013698,2]
[333736559,1722426641102,-510.82,0.00013698,2]
[333736561,1722426641112,-221.294851,0.00013698,2]
[333736562,1722426641123,-221.294851,0.00013698,2]
[333736563,1722426641134,-221.294851,0.00013698,2]
[333736564,1722426641144,-500.0,0.00013698,2]
[333736565,1722426641153,-221.294851,0.00013698,2]
[333736566,1722426641163,-221.294851,0.00013698,2]
[333736567,1722426641172,-221.294851,0.00013698,2]
[333736568,1722426641182,-823.13,0.00013698,2]
[333736569,1722426641194,-500.0,0.00013698,2]
[333736570,1722426641204,-973.4,0.00013698,2]
[333736571,1722426641213,-500.0,0.00013698,2]
[333736572,1722426641222,-919.43,0.00013698,2]
[333736573,1722426641232,-500.0,0.00013698,2]
[333736574,1722426641241,-500.0,0.00013698,2]
[333736575,1722426641250,-504.33909929,0.00013698,2]
[333736576,1722426641260,-1222.01,0.00013698,2]
[333736577,1722426641270,-500.0,0.00013698,2]
[333736578,1722426641279,-500.0,0.00013698,2]
[333736579,1722426641288,-479.6951951,0.00013698,2]
[333736580,1722426641300,-151.0,0.00013698,2]
[333736581,1722426641310,-500.0,0.00013698,2]
[333736582,1722426641319,-500.0,0.00013698,2]
[333736583,1722426641329,-222.75729771,0.00013698,2]
[333736584,1722426641344,-2187.49270229,0.00013698,2]
[333736585,1722426641353,-500.0,0.00013698,2]
[333736586,1722426641363,-500.0,0.00013698,2]
[333736587,1722426641373,-500.0,0.00013698,2]
[333736588,1722426641383,-328.85603228,0.00013698,2]
[333736589,1722426641393,-151.0,0.00013698,2]
[333736590,1722426641403,-151.0,0.00013698,2]
[333736591,1722426641412,-151.0,0.00013698,2]
[333736592,1722426641422,-500.0,0.00013698,2]
[333736593,1722426641431,-500.0,0.00013698,2]
[333736594,1722426641441,-538.00111446,0.00013698,2]
[333736595,1722426641450,-470.749937,0.00013698,2]
[333736596,1722426641460,-470.749937,0.00013698,2]
[333736597,1722426641469,-151.0,0.00013698,2]
[333736598,1722426641479,-151.0,0.00013698,2]
[333736599,1722426641490,-470.749937,0.00013698,2]
[333736600,1722426641499,-151.0,0.00013698,2]
[333736601,1722426641509,-151.0,0.00013698,2]
[333736602,1722426641518,-151.0,0.00013698,2]
[333736603,1722426641528,-151.0,0.00013698,2]
[333736604,1722426641540,-470.749937,0.00013698,2]
[333736605,1722426641550,-470.749937,0.00013698,2]
[333736606,1722426641561,-470.749937,0.00013698,2]
[333736607,1722426641571,-594.14,0.00013698,2]
[333736608,1722426641579,-650.11,0.00013698,2]
[333736609,1722426641589,-500.0,0.00013698,2]
[333736610,1722426641598,-500.0,0.00013698,2]
[333736611,1722426641607,-500.0,0.00013698,2]
[333736612,1722426641616,-1164.19685,0.00013698,2]
[333736613,1722426641626,-1164.19685,0.00013698,2]
[333736614,1722426641635,-1164.19685,0.00013698,2]
[333736615,1722426641644,-1164.19685,0.00013698,2]
[333736616,1722426641655,-928.83394773,0.00013698,2]
[333736617,1722426642067,-235.36290227,0.00013698,2]
[333736618,1722426642078,-1164.19685,0.00013698,2]
[333736619,1722426642087,-500.0,0.00013698,2]
[333736620,1722426642096,-502.33610502,0.00013698,2]
[333736621,1722426642106,-500.0,0.00013698,2]
[333736622,1722426642115,-1489.13,0.00013698,2]
[333736623,1722426642125,-500.0,0.00013698,2]
[333736624,1722426642135,-500.0,0.00013698,2]
[333736625,1722426642146,-500.0,0.00013698,2]
[333736626,1722426642157,-1129.63082174,0.00013698,2]
[333736627,1722426642170,-227.20917826,0.00013698,2]
[333736628,1722426642180,-500.0,0.00013698,2]
[333736629,1722426642189,-4714.38,0.00013698,2]
[333736630,1722426642199,-500.0,0.00013698,2]
[333736631,1722426642208,-500.0,0.00013698,2]
[333736632,1722426642218,-151.0,0.00013698,2]
[333736633,1722426642230,-151.0,0.00013698,2]
[333736634,1722426642241,-472.66792081,0.00013698,2]
[333736635,1722426642252,-500.0,0.00013698,2]
[333736636,1722426642264,-151.176751,0.00013698,2]
[333736637,1722426642274,-500.0,0.00013698,2]
[333736638,1722426642284,-500.0,0.00013698,2]
[333736639,1722426642293,-1907.46,0.00013698,2]
[333736640,1722426642302,-761.38,0.00013698,2]
[333736641,1722426642313,-3900.48,0.00013698,2]
[333736642,1722426642322,-1728.01,0.00013698,2]
[333736643,1722426642331,-500.0,0.00013698,2]
[333736644,1722426642341,-500.0,0.00013698,2]
[333736645,1722426642350,-1062.17,0.00013698,2]
[333736646,1722426642360,-500.0,0.00013698,2]
[333736647,1722426642370,-3133.08,0.00013698,2]
[333736648,1722426642380,-859.0,0.00013698,2]
[333736649,1722426642390,-6873.0,0.00013698,2]
[333736650,1722426642400,-561.66723649,0.00013698,2]
[333736651,1722426642409,-500.0,0.00013698,2]
[333736652,1722426642418,-500.0,0.00013698,2]
[333736653,1722426642428,-1689.62,0.00013698,2]
[333736654,1722426642437,-500.0,0.00013698,2]
[333736655,1722426642447,-1727.07,0.00013698,2]
[333736656,1722426642457,-1395.23,0.00013698,2]
[333736657,1722426642466,-500.0,0.00013698,2]
[333736658,1722426642476,-151.0,0.00013698,2]
[333736659,1722426642485,-505.07442751,0.00013698,2]
[333736660,1722426642494,-500.0,0.00013698,2]
[333736661,1722426642503,-1539.41,0.00013698,2]
[333736662,1722426642512,-500.0,0.00013698,2]
[333736663,1722426642521,-500.0,0.00013698,2]
[333736665,1722426642531,-500.0,0.00013698,2]
[333736666,1722426642540,-500.0,0.00013698,2]
[333736667,1722426642550,-500.0,0.00013698,2]
[333736668,1722426642559,-9673.05,0.00013698,2]
[333736669,1722426642569,-514.26,0.00013698,2]
[333736670,1722426642578,-586.44,0.00013698,2]
[333736671,1722426642587,-619.05,0.00013698,2]
[333736672,1722426642597,-445.28960611,0.00013698,2]
[333736673,1722426642609,-54.71039389,0.00013698,2]
[333736674,1722426642620,-345.28960611,0.00013698,2]
[333736678,1722426643016,-275.72039389,0.00013698,2]
[333736679,1722426643027,-656.19,0.00013698,2]
[333736680,1722426643038,-500.0,0.00013698,2]
[333736681,1722426643048,-500.0,0.00013698,2]
[333736682,1722426643058,-341.8453048,0.00013698,2]
[333736683,1722426643069,-1115.68,0.00013698,2]
[333736684,1722426643079,-22.73584613,0.00013698,2]
[333736701,1722426646070,-128.26415387,0.00013698,2]
[333736702,1722426646080,-326.191969,0.00013698,2]
[333736703,1722426646090,-500.0,0.00013698,2]
[333736704,1722426646099,-151.0,0.00013698,2]
[333736705,1722426646109,-326.191969,0.00013698,2]
[333736706,1722426646119,-151.0,0.00013698,2]
[333736708,1722426646128,-326.191969,0.00013698,2]
[333736709,1722426646138,-500.0,0.00013698,2]
[333736710,1722426646149,-326.191969,0.00013698,2]
[333736711,1722426646161,-326.191969,0.00013698,2]
[333736712,1722426646171,-326.191969,0.00013698,2]
[333736713,1722426646180,-379.12943933,0.00013698,2]
[333736714,1722426646191,-638.67,0.00013698,2]
[333736716,1722426646201,-723.89,0.00013698,2]
[333736717,1722426646212,-1504.46,0.00013698,2]
[333736718,1722426646221,-500.0,0.00013698,2]
[333736719,1722426646232,-1874.008769,0.00013698,2]
[333736720,1722426646241,-1874.008769,0.00013698,2]
[333736721,1722426646251,-1874.008769,0.00013698,2]
[333736722,1722426646261,-1874.008769,0.00013698,2]
[333736723,1722426646271,-500.0,0.00013698,2]
[333736724,1722426646280,-500.0,0.00013698,2]
[333736725,1722426646290,-862.81,0.00013698,2]
[333736726,1722426646300,-1874.008769,0.00013698,2]
[333736727,1722426646312,-1874.008769,0.00013698,2]
[333736728,1722426646321,-1874.008769,0.00013698,2]
[333736729,1722426646331,-1874.008769,0.00013698,2]
[333736730,1722426646340,-500.0,0.00013698,2]
[333736731,1722426646350,-1012.67,0.00013698,2]
[333736732,1722426646359,-151.0,0.00013698,2]
[333736733,1722426646369,-151.0,0.00013698,2]
[333736734,1722426646382,-500.0,0.00013698,2]
[333736735,1722426646391,-1679.29,0.00013698,2]
[333736736,1722426646401,-383.27211078,0.00013698,2]
[333736737,1722426646415,-147.34113795,0.00013698,2]
[333736738,1722426646427,-500.0,0.00013698,2]
[333736739,1722426646438,-500.0,0.00013698,2]
[333736740,1722426646448,-981.71,0.00013698,2]
[333736741,1722426646459,-500.0,0.00013698,2]
[333736742,1722426646469,-500.0,0.00013698,2]
[333736743,1722426646480,-500.0,0.00013698,2]
[333736744,1722426646490,-500.0,0.00013698,2]
[333736745,1722426646499,-500.0,0.00013698,2]
[333736746,1722426646510,-2183.18,0.00013698,2]
[333736747,1722426646520,-500.0,0.00013698,2]
[333736748,1722426646530,-577.94,0.00013698,2]
[333736749,1722426646540,-500.0,0.00013698,2]
[333736750,1722426646550,-813.03086205,0.00013698,2]
[333736751,1722426646570,-770.88913795,0.00013698,2]
[333736752,1722426646579,-1080.63,0.00013698,2]
[333736753,1722426646588,-597.88,0.00013698,2]
[333736754,1722426646598,-500.0,0.00013698,2]
[333736755,1722426646607,-500.0,0.00013698,2]
[333736756,1722426646617,-502.43460247,0.00013698,2]
[333736757,1722426646626,-1390.11,0.00013698,2]
[333736758,1722426646638,-500.0,0.00013698,2]
[333736759,1722426646650,-151.0,0.00013698,2]
[333736760,1722426646659,-151.0,0.00013698,2]
[333736761,1722426646668,-160.05625958,0.00013698,2]
[333736769,1722427445980,500.0,0.00026,120]
[333736770,1722427470125,700.0,0.00027,120]
[333736773,1722427508489,624.0,0.00027,120]
[333736775,1722427526235,700.0,0.00027,120]
[333736778,1722427635927,890.04294861,9.999e-05,2]
[333736784,1722427706728,4711.14602353,9.999e-05,2]
[333736785,1722427706764,218.07100213,9.999e-05,2]
[333736787,1722427713041,12191.20318958,9.999e-05,2]
[333736795,1722427720121,166.86316,9.999e-05,2]
[333736805,1722427764854,154.76012181,9.999e-05,2]
[333736828,1722427797373,405.28182436,0.0001,2]
[333736831,1722427806742,1408.15497872,9.999e-05,2]
[333736862,1722427832362,-154.74467129,0.0001212,2]
[333736863,1722427832372,-167.024069,0.00012986,2]
[333736864,1722427832382,-1410.0,0.00013492,2]
[333736865,1722427832392,-268.20698571,0.00013565,2]
[333736886,1722427838284,-49.92873734,0.00013565,2]
[333736887,1722427838294,-228.08295729,0.0001359,2]
[333736888,1722427838304,-228.08295726,0.00013592,2]
[333736890,1722427838314,-228.08295726,0.00013594,2]
[333736891,1722427838324,-228.08295726,0.00013596,2]
[333736892,1722427838334,-228.08295726,0.00013598,2]
[333736893,1722427838343,-153.0,0.000136,2]
[333736894,1722427838353,-300.0,0.00013663,2]
[333736895,1722427838363,-2660.42929107,0.00013664,2]
[333736896,1722427838372,-2161.0,0.00013687,2]
[333736897,1722427838383,-2161.0,0.00013687,2]
[333736898,1722427838392,-40047.22196158,0.00013688,2]
[333736899,1722427838404,-17508.28178762,0.00013688,2]
[333736900,1722427838415,-413.91838099,0.00013688,2]
[333736901,1722427838427,-726.88,0.00013688,2]
[333736910,1722427839970,533.38063441,9.999e-05,2]
[333736916,1722427840344,-54999.17512018,0.00013688,2]
[333736917,1722427840397,-1087.02968774,0.00013688,2]
[333736918,1722427840409,-30655.42635589,0.00013688,2]
[333736919,1722427840419,-5000.0,0.0001369,2]
[333736920,1722427840429,-252.92814339,0.00013696,2]
[333736922,1722427840440,-1908.07185661,0.00013696,2]
[333736924,1722427840450,-1211.75960894,0.00013697,2]
[333736944,1722427843294,-878.93839923,0.00013697,2]
[333736972,1722427846376,-1099.95058495,0.0001359,2]
[333736973,1722427846387,-70.30199183,0.00013697,2]
[333736974,1722427846396,-527.24742322,0.00013697,2]
[333736975,1722427846408,-1633.75257678,0.00013697,2]
[333736976,1722427846635,-2161.0,0.00013697,2]
[333736977,1722427846647,-2161.0,0.00013697,2]
[333736978,1722427846657,-2161.0,0.00013697,2]
[333736979,1722427846666,-2161.0,0.00013697,2]
[333736980,1722427846676,-2161.0,0.00013697,2]
[333736981,1722427846685,-4247.48742322,0.00013698,5]
[333736982,1722427880376,156.64447961,9.999e-05,2]
[333736983,1722427892086,477.15708592,9.999e-05,2]
[333736989,1722428099093,4135.9436777,0.00025,60]
[333736991,1722428144274,309.24235622,9.999e-05,2]
[333736992,1722428162471,192.24289464,9.999e-05,2]
[333736996,1722428247524,278.76319604,9.999e-05,2]
[333736997,1722428281300,309.24235622,9.999e-05,2]
[333737004,1722428402481,154.77557542,9.999e-05,2]
[333737005,1722428405254,686.17359375,9.999e-05,2]
[333737027,1722428445313,3000.0,0.00027,120]
[333737028,1722428468974,2111.18,0.00025,60]
[333737029,1722428489883,5203.99564602,0.00025,60]
[333737030,1722428507982,154.77557542,9.999e-05,2]
[333737031,1722428520986,154.77557542,9.999e-05,2]
[333737032,1722428533100,779.39662751,9.999e-05,2]
[333737033,1722428583160,429.21149074,9.999e-05,2]
[333737034,1722428643084,779.39662751,9.999e-05,2]
[333737035,1722428647019,154.76012181,9.999e-05,2]
[333737037,1722428747082,779.39662751,9.999e-05,2]
[333737038,1722428759507,154.76012181,9.999e-05,2]
[333737039,1722428762104,779.39662751,9.999e-05,2]
[333737041,1722428814829,576.96188199,9.999e-05,2]
[333737044,1722428855521,154.76012181,9.999e-05,2]
[333737045,1722428866946,-241.65317404,0.0001202,2]
[333737046,1722428866969,-241.65317389,0.00012066,2]
[333737047,1722428866993,-241.65317389,0.00012111,2]
[333737048,1722428867019,-58.04047818,0.0001212,2]
[333737050,1722428873417,195.0,0.00027,120]
[333737062,1722428931823,576.96188199,9.999e-05,2]
[333737063,1722428963399,465.21,0.00027,120]
[333737064,1722428966529,154.74467129,9.999e-05,2]
[333737071,1722428997913,155.2,0.00027,120]
[333737093,1722429032419,-576.96188199,0.0001212,2]
[333737095,1722429032430,-154.72922386,0.0001212,2]
[333737098,1722429032441,-167.024069,0.00012986,2]
[333737100,1722429032451,-2660.42929107,0.00013266,2]
[333737102,1722429032461,-318.13572306,0.00013344,2]
[333737104,1722429032470,-176.38055586,0.00013588,2]
[333737107,1722429032480,-1177.53381103,0.00013588,2]
[333737110,1722429032491,-176.38055586,0.00013591,2]
[333737113,1722429032501,-176.38055586,0.00013593,2]
[333737116,1722429032510,-176.38055586,0.00013596,2]
[333737119,1722429032520,-176.38055586,0.00013598,2]
[333737122,1722429032531,-300.0,0.00013686,2]
[333737125,1722429032541,-1260.58,0.00013687,2]
[333737127,1722429032551,-1260.58,0.00013687,2]
[333737130,1722429032560,-4301.95392379,0.00013688,2]
[333737143,1722429038655,-24618.4609408,0.00013688,2]
[333737156,1722429041849,576.96188199,9.999e-05,2]
[333737159,1722429041870,-54999.17512018,0.00013688,2]
[333737162,1722429041888,-11184.43999318,0.00013688,2]
[333737192,1722429043659,-200.0,0.00013598,2]
[333737193,1722429043671,-12238.64072005,0.00013688,2]
[333737194,1722429043683,-1097.29617942,0.00013688,2]
[333737236,1722429252674,198.0,0.000139,120]
[333737245,1722429980091,154.72922386,9.999e-05,2]
[333737246,1722430018174,301.41569513,9.999e-05,2]
[333737247,1722430025553,154.72922386,9.999e-05,2]
[333737248,1722430026292,166.96454645,9.999e-05,2]
[333737249,1722430027374,16282.69856011,9.999e-05,2]
[333737250,1722430033276,309.42755902,9.999e-05,2]
[333737251,1722430041909,4711.14602353,9.999e-05,2]
[333737252,1722430043504,3784.56616261,9.999e-05,2]
[333737253,1722430044685,156.59429784,9.999e-05,2]
[333737254,1722430045176,154.97900985,9.999e-05,2]
[333737255,1722430049839,5116.41315875,9.999e-05,2]
[333737256,1722430056279,154.79103211,9.999e-05,2]
[333737257,1722430059362,2108.20847387,9.999e-05,2]
[333737258,1722430060289,1626.72585565,9.999e-05,2]
[333737259,1722430071894,4711.14602353,9.999e-05,2]
[333737260,1722430085134,154.74467129,9.999e-05,2]
[333737261,1722430085659,19458.21210286,9.999e-05,2]
[333737262,1722430086515,218.28848459,9.999e-05,2]
[333737263,1722430098712,218.28848459,9.999e-05,2]
[333737264,1722430114824,300.59714052,9.999e-05,2]
[333737265,1722430128323,10059.2987958,9.999e-05,2]
[333737266,1722430128558,154.74467129,9.999e-05,2]
[333737267,1722430130656,3784.56616261,9.999e-05,2]
[333737268,1722430152356,980.45118212,9.999e-05,2]
[333737269,1722430157869,1626.72585565,9.999e-05,2]
[333737273,1722430169145,-500.3127797,0.00010279,2]
[333737274,1722430169168,-76.10573675,0.00010786,2]
[333737275,1722430172804,1626.72585565,9.999e-05,2]
[333737282,1722430186904,234.6921649,9.999e-05,2]
[333737283,1722430188279,779.39662751,9.999e-05,2]
[333737284,1722430190090,154.72922386,9.999e-05,2]
[333737285,1722430202645,19458.21210286,9.999e-05,2]
[333737293,1722430213523,3772.38032763,9.999e-05,2]
[333737294,1722430224574,154.72922386,9.999e-05,2]
[333737295,1722430225029,404.72009862,9.999e-05,2]
[333737296,1722430229828,300.59714052,9.999e-05,2]
[333737352,1722430232651,19458.21210286,9.999e-05,2]
[333737356,1722430232694,-1691.55859296,0.00010179,2]
[333737357,1722430232704,-4108.10395613,0.00010179,2]
[333737358,1722430232713,-189.136172,0.00010279,2]
[333737359,1722430232723,-3199.9059371,0.00010339,2]
[333737360,1722430232732,-124.47460585,0.00010786,2]
[333737361,1722430232741,-300.0,0.00010858,2]
[333737362,1722430232751,-300.0,0.00010858,2]
[333737364,1722430232762,-3723.82073596,0.00010859,2]
[333737367,1722430238652,-4263.48996828,0.00010859,2]
[333737374,1722430238976,-3772.33049379,0.00010859,2]
[333737375,1722430238987,-1874.0772062,0.00010886,2]
[333737376,1722430238996,-410.58,0.00010959,2]
[333737377,1722430239006,-742.3926505,0.00011253,2]
[333737378,1722430239016,-4399.8881204,0.00011427,2]
[333737379,1722430239026,-420.0,0.00011944,2]
[333737380,1722430239035,-10835.7307185,0.00012046,2]
[333737381,1722430239045,-964.23403757,0.0001212,2]
[333737382,1722430239054,-236.39351361,0.0001212,2]
[333737383,1722430239063,-154.72922386,0.0001212,2]
[333737384,1722430239073,-757.7404059,0.00012464,2]
[333737385,1722430239082,-13545.3133835,0.00012638,2]
[333737386,1722430239092,-1030.34208466,0.000129,2]
[333737387,1722430239101,-167.351654,0.00012986,2]
[333737388,1722430239110,-587.0,0.00013138,2]
[333737389,1722430239119,-287.8075545,0.00013178,2]
[333737390,1722430239130,-4302.38671827,0.00013185,2]
[333737391,1722430239139,-150.0,0.00013225,2]
[333737392,1722430239149,-336.61580579,0.00013349,2]
[333737393,1722430239160,-789.293208,0.00013498,2]
[333737394,1722430239169,-789.293208,0.00013523,2]
[333737395,1722430239178,-789.293208,0.00013548,2]
[333737396,1722430239188,-789.293208,0.00013573,2]
[333737397,1722430239198,-789.293208,0.00013598,2]
[333737398,1722430239208,-1161.09563421,0.00013598,2]
[333737399,1722430239218,-438.99322283,0.00013598,2]
[333737400,1722430239227,-2000.0,0.00013598,2]
[333737401,1722430239237,-205.9981146,0.000136,2]
[333737402,1722430239246,-306.0,0.000136,2]
[333737403,1722430239255,-4739.00573915,0.000136,2]
[333737404,1722430239265,-1812.02000001,0.0001366,2]
[333737405,1722430239275,-1280.71,0.00013687,2]
[333737406,1722430239285,-1280.71,0.00013687,2]
[333737407,1722430239294,-15218.4055285,0.00013688,2]
[333737408,1722430239304,-2884.0108045,0.00013688,5]
[333737409,1722430239314,-21618.77918612,0.00013688,2]
[333737410,1722430239328,-60563.80495455,0.00013688,2]
[333737411,1722430239340,-3225.35030126,0.00013688,2]
[333737448,1722430240968,-7922.2221753,0.00013688,2]
[333737450,1722430240985,-9944.2231,0.00013688,2]
[333737452,1722430240997,-54999.17512018,0.00013688,2]
[333737453,1722430241016,-3739.87513785,0.00013688,2]
[333737454,1722430241029,-10613.23543612,0.00013688,2]
[333737455,1722430241040,-463.17852412,0.00013688,2]
[333737456,1722430241053,-5240.532078,0.00013688,2]
[333737457,1722430241065,-19508.8958575,0.00013688,2]
[333737458,1722430241075,-1199.58671524,0.00013697,2]
[333737481,1722430243832,-81.12328476,0.00013697,2]
[333737483,1722430243843,-1280.71,0.00013697,2]
[333737485,1722430243854,-1280.71,0.00013697,2]
[333737487,1722430243866,-1280.71,0.00013697,2]
[333737489,1722430243876,-1280.71,0.00013697,2]
[333737491,1722430243885,-1280.71,0.00013697,2]
[333737493,1722430243894,-1280.71,0.00013697,2]
[333737495,1722430243905,-1280.71,0.00013697,2]
[333737497,1722430243915,-1280.71,0.00013697,2]
[333737499,1722430243924,-1280.71,0.00013697,2]
[333737501,1722430243935,-23124.11587314,0.00013698,5]
[333737506,1722430243966,-1115.14024478,0.00013698,5]
[333737570,1722430246917,-14218.26645841,0.00013698,5]
[333737571,1722430247028,-7606.58559822,0.00013698,5]
[333737573,1722430247038,-500.0,0.00013698,2]
[333737574,1722430247047,-448.48781006,0.00013698,2]
[333737575,1722430247058,-500.0,0.00013698,2]
[333737576,1722430247068,-500.0,0.00013698,2]
[333737577,1722430247078,-500.0,0.00013698,2]
[333737578,1722430247087,-500.0,0.00013698,2]
[333737579,1722430247097,-500.0,0.00013698,2]
[333737580,1722430247107,-500.0,0.00013698,2]
[333737581,1722430247117,-500.0,0.00013698,2]
[333737582,1722430247127,-500.0,0.00013698,2]
[333737583,1722430247136,-500.0,0.00013698,2]
[333737584,1722430247146,-500.0,0.00013698,2]
[333737585,1722430247156,-500.0,0.00013698,2]
[333737586,1722430247170,-500.0,0.00013698,2]
[333737587,1722430247179,-500.0,0.00013698,2]
[333737588,1722430247189,-500.0,0.00013698,2]
[333737589,1722430247198,-500.0,0.00013698,2]
[333737590,1722430247208,-500.0,0.00013698,2]
[333737591,1722430247218,-500.0,0.00013698,2]
[333737592,1722430247228,-500.0,0.00013698,2]
[333737593,1722430247239,-500.0,0.00013698,2]
[333737594,1722430247249,-500.0,0.00013698,2]
[333737595,1722430247260,-500.0,0.00013698,2]
[333737596,1722430247272,-500.0,0.00013698,2]
[333737597,1722430247282,-500.0,0.00013698,2]
[333737598,1722430247292,-500.0,0.00013698,2]
[333737599,1722430247301,-500.0,0.00013698,2]
[333737600,1722430247311,-500.0,0.00013698,2]
[333737601,1722430247320,-500.0,0.00013698,2]
[333737602,1722430247330,-500.0,0.00013698,2]
[333737603,1722430247339,-500.0,0.00013698,2]
[333737604,1722430247348,-500.0,0.00013698,2]
[333737605,1722430247358,-500.0,0.00013698,2]
[333737606,1722430247367,-500.0,0.00013698,2]
[333737607,1722430247376,-500.0,0.00013698,2]
[333737608,1722430247386,-500.0,0.00013698,2]
[333737609,1722430247396,-500.0,0.00013698,2]
[333737610,1722430247406,-500.0,0.00013698,2]
[333737611,1722430247417,-500.0,0.00013698,2]